bitfinex-derivatives/quotes_ETHF0:USTF0_20220106
["timestamp","ask_amount","ask_price","bid_price","bid_amount"]
[1641431805379,3.16095373,3533.1,3533.0,15.22736727]
[1641431805579,3.16095373,3533.1,3533.0,3.03736727]
[1641431807082,0.95366781,3533.4,3533.0,3.03736727]
[1641431807480,0.95366781,3533.4,3533.0,1.03257727]
[1641431808380,0.95366781,3533.2,3533.0,1.03257727]
[1641431808584,0.95366781,3533.2,3533.0,0.90018327]
[1641431809579,0.229991,3533.1,3533.0,0.90018327]
[1641431810979,0.229991,3533.1,3533.0,0.55913773]
[1641431812880,1.27155708,3533.2,3533.0,0.55913773]
[1641431813280,0.20261772,3533.1,3533.0,0.55913773]
[1641431814182,0.229991,3533.1,3533.0,0.55913773]
[1641431815483,1.18373698,3533.1,3533.0,0.55913773]
[1641431815683,0.95374598,3533.1,3533.0,0.55913773]
[1641431815883,1.18373698,3533.1,3533.0,0.55913773]
[1641431816083,0.229991,3533.1,3533.0,0.55913773]
[1641431817285,0.95373941,3533.1,3533.0,0.55913773]
[1641431817486,1.18373041,3533.1,3533.0,0.55913773]
[1641431818586,1.21815593,3533.1,3533.0,0.55913773]
[1641431819785,0.26441652,3533.1,3533.0,0.55913773]
[1641431819987,0.46702587,3533.1,3533.0,0.55913773]
[1641431821590,1.73858295,3533.1,3533.0,0.55913773]
[1641431822492,0.46702587,3533.1,3533.0,0.55913773]
[1641431823990,0.46702587,3533.1,3533.0,1.39604794]
[1641431824792,1.96702587,3533.1,3533.0,1.39604794]
[1641431824993,1.96702587,3533.1,3532.3,2.00479]
[1641431825195,1.5,3532.8,3532.3,2.00479]
[1641431825392,3.53921552,3533.0,3532.3,2.00479]
[1641431825595,0.03442552,3532.7,3532.3,2.00479]
[1641431825994,0.03442552,3532.7,3532.4,0.95071526]
[1641431826394,0.229991,3532.6,3532.4,0.95071526]
[1641431826594,0.03442552,3532.9,3532.4,0.95071526]
[1641431826894,0.03442552,3532.8,3532.4,0.95071526]
[1641431827195,0.03442552,3532.9,3532.4,0.95071526]
[1641431827395,0.03442552,3532.7,3532.4,0.95071526]
[1641431827595,0.229991,3532.6,3532.4,0.95071526]
[1641431827798,0.26441652,3532.6,3532.4,0.95071526]
[1641431828295,0.03442552,3532.5,3532.4,0.95071526]
[1641431828797,0.076609,3532.6,3532.4,0.95071526]
[1641431828998,0.25684096,3532.8,3532.4,1.18070626]
[1641431829507,0.25684096,3532.8,3532.4,0.95071526]
[1641431829905,0.03200419,3532.7,3532.4,0.95071526]
[1641431830105,0.076609,3532.6,3532.4,0.95071526]
[1641431830309,0.03200419,3532.7,3532.5,0.229991]
[1641431830605,0.25684096,3532.8,3532.5,0.229991]
[1641431831407,0.076609,3532.7,3532.5,0.229991]
[1641431831607,2.00479,3533.0,3532.6,0.229991]
[1641431831808,2.00479,3533.0,3532.4,0.95071526]
[1641431834007,1.27166929,3533.3,3532.4,0.95071526]
[1641431834210,34.70111131,3533.5,3532.5,0.132394]
[1641431834409,1.90754369,3532.8,3532.5,0.73232976]
[1641431834611,1.90754369,3532.8,3532.6,0.229991]
[1641431834812,1.90754369,3532.8,3532.7,0.132394]
[1641431835815,1.90754369,3532.8,3532.7,0.73232976]
[1641431836013,1.90754369,3533.2,3532.7,2.01398556]
[1641431837514,2.77096401,3533.4,3533.0,1.0]
[1641431837715,2.77096401,3533.4,3533.1,1.22077113]
[1641431838115,0.076609,3533.3,3533.1,1.22077113]
[1641431838414,2.77096401,3533.4,3533.1,1.22077113]
[1641431839116,1.90754369,3533.3,3533.1,1.82070689]
[1641431839515,1.90754369,3533.3,3533.2,0.229991]
[1641431839815,1.90754369,3533.3,3533.1,1.22077113]
[1641431840414,1.90754369,3533.3,3533.2,0.229991]
[1641431840815,1.98415269,3533.3,3533.1,1.22077113]
[1641431841014,1.90754369,3533.3,3533.1,1.22077113]
[1641431841516,1.90754369,3533.3,3533.2,0.229991]
[1641431842118,1.90754369,3533.5,3533.2,0.229991]
[1641431842519,1.90754369,3533.5,3533.3,1.132394]
[1641431842719,1.90754369,3533.5,3533.4,0.229991]
[1641431842918,1.90754369,3533.5,3533.3,1.132394]
[1641431843518,1.90754369,3533.5,3533.3,2.132394]
[1641431843719,0.076609,3533.4,3533.3,2.132394]
[1641431843919,1.98415269,3533.4,3533.3,2.132394]
[1641431844118,1.98415269,3533.4,3533.3,2.0]
[1641431844618,1.90754369,3533.4,3533.3,2.229991]
[1641431844818,0.19886575,3533.4,3533.3,2.229991]
[1641431845622,0.23086294,3533.4,3533.3,2.229991]
[1641431845820,0.30747194,3533.4,3533.3,2.0]
[1641431846020,0.03199719,3533.4,3533.3,2.229991]
[1641431846421,0.03199719,3533.4,3533.3,2.0]
[1641431846821,0.10860619,3533.4,3533.3,2.0]
[1641431847023,0.30747194,3533.4,3533.3,2.0]
[1641431847524,0.13677194,3533.4,3533.3,2.0]
[1641431848123,2.52123502,3533.4,3533.3,2.0]
[1641431848524,2.52123502,3533.4,3533.3,2.229991]
[1641431848722,1.52123502,3533.4,3533.3,2.0]
[1641431850726,1.52123502,3533.4,3533.3,2.229991]
[1641431851324,1.52123502,3533.4,3533.3,2.0]
[1641431851524,1.52123502,3533.4,3533.3,2.229991]
[1641431852625,1.52123502,3533.4,3533.3,2.0]
[1641431853124,1.52123502,3533.4,3533.3,2.229991]
[1641431853524,1.52123502,3533.4,3533.3,2.0]
[1641431853725,0.69193502,3533.4,3533.3,2.0]
[1641431853926,0.69193502,3533.4,3533.3,2.229991]
[1641431854725,0.69193502,3533.4,3533.3,2.0]
[1641431854926,0.69193502,3533.4,3533.3,2.229991]
[1641431855427,0.69193502,3533.4,3533.3,2.0]
[1641431855830,0.69193502,3533.4,3533.3,2.229991]
[1641431857532,0.69193502,3533.4,3533.3,2.362385]
[1641431858534,0.69193502,3533.4,3533.3,0.362385]
[1641431858833,3.16095373,3533.7,3533.4,2.30806498]
[1641431859034,3.16095373,3533.7,3533.5,0.229991]
[1641431859234,0.03199777,3533.6,3533.4,2.30806498]
[1641431860134,0.03199777,3533.6,3533.4,1.42738792]
[1641431860335,0.03199777,3533.6,3533.4,1.65737892]
[1641431860937,0.03199777,3533.6,3533.5,0.132394]
[1641431861737,0.03199777,3533.6,3533.5,2.137184]
[1641431862636,0.03199777,3533.9,3533.5,2.137184]
[1641431862836,0.03199777,3533.6,3533.5,2.137184]
[1641431863139,0.03199777,3533.8,3533.5,2.367175]
[1641431863338,0.03199777,3533.6,3533.5,2.367175]
[1641431863737,0.03199777,3533.9,3533.5,2.367175]
[1641431863939,0.03199777,3533.6,3533.5,2.367175]
[1641431864137,1.5,3533.6,3533.4,1.42738792]
[1641431864337,1.53199777,3533.6,3533.1,2.04809594]
[1641431864540,2.62753939,3534.1,3533.1,2.04809594]
[1641431864541,1.5,3533.2,3533.1,2.04809594]
[1641431864739,1.5,3533.2,3532.8,1.2816558]
[1641431865038,0.03199777,3533.1,3532.8,1.2816558]
[1641431865238,1.5,3533.0,3532.8,1.2816558]
[1641431865640,3.50479,3533.0,3532.8,1.2816558]
[1641431865838,0.03199777,3532.9,3532.8,1.2816558]
[1641431866439,1.53199777,3532.9,3532.8,0.82513889]
[1641431867242,0.03199777,3532.9,3532.8,0.82513889]
[1641431867740,0.03199777,3532.9,3532.8,1.05512989]
[1641431868141,2.43095307,3532.9,3532.8,1.05512989]
[1641431869344,2.14397136,3532.9,3532.8,1.05512989]
[1641431869743,2.11197359,3532.9,3532.8,1.05512989]
[1641431870946,0.19223091,3532.9,3532.8,1.65503005]
[1641431871746,0.19223091,3532.9,3532.8,13.84503005]
[1641431871948,1.91974268,3533.1,3532.8,16.75922717]
[1641431872151,2.3989553,3533.4,3533.2,12.19]
[1641431872347,2.3989553,3533.4,3533.3,0.229991]
[1641431872549,2.3989553,3533.4,3533.3,0.362385]
[1641431873750,3.16095373,3533.6,3533.3,0.362385]
[1641431873956,2.00479,3534.0,3533.4,1.33294789]
[1641431874249,2.00479,3534.0,3533.5,0.132394]
[1641431874452,0.03199128,3533.9,3533.5,0.132394]
[1641431876954,0.03199128,3533.9,3533.5,12.322394]
[1641431877155,2.3989553,3534.0,3533.8,13.69]
[1641431877354,2.3989553,3534.0,3533.9,12.552385]
[1641431877855,2.02240601,3534.1,3533.9,14.557175]
[1641431878058,2.02240601,3534.1,3534.0,13.20965681]
[1641431878656,0.66455457,3534.1,3534.0,1.01965681]
[1641431878856,2.39880313,3534.4,3534.0,1.01965681]
[1641431879256,2.39880313,3534.4,3534.1,0.132394]
[1641431879455,2.39880313,3534.4,3534.2,0.229991]
[1641431879858,2.39880313,3534.4,3534.2,0.362385]
[1641431880059,3.16095373,3534.7,3534.2,0.362385]
[1641431880459,0.03198483,3534.6,3534.2,0.362385]
[1641431880860,0.03198483,3534.6,3534.2,0.229991]
[1641431881059,0.03198483,3534.9,3534.2,0.229991]
[1641431881461,0.03198483,3534.9,3534.1,1.0]
[1641431881664,1.91891845,3534.4,3534.1,1.0]
[1641431882061,0.03198483,3534.3,3534.1,1.0]
[1641431882664,1.95090328,3534.3,3534.2,0.229991]
[1641431883064,1.95090328,3534.3,3534.1,1.0]
[1641431883765,0.03198483,3534.2,3534.1,1.0]
[1641431884566,1.91891845,3534.3,3534.1,1.229991]
[1641431884764,0.95090328,3534.3,3534.1,1.0]
[1641431885164,0.95090328,3534.2,3534.1,1.0]
[1641431885867,2.98768715,3534.2,3534.1,1.0]
[1641431886667,2.03678387,3534.2,3534.1,1.0]
[1641431887068,4.43576822,3534.2,3534.1,1.0]
[1641431888472,4.43576822,3534.2,3534.0,1.01965681]
[1641431888669,2.43097822,3534.2,3534.0,1.01965681]
[1641431888869,7.31791348,3535.0,3534.2,0.96800613]
[1641431889070,5.81791348,3535.0,3534.2,0.96800613]
[1641431889271,1.5,3534.9,3534.2,0.96800613]
[1641431889669,1.5,3534.9,3534.2,1.96800613]
[1641431890068,0.03199227,3534.8,3534.2,1.96800613]
[1641431890470,0.03199227,3534.9,3534.2,1.96800613]
[1641431890670,0.03199227,3534.7,3534.2,1.96800613]
[1641431890871,0.03199227,3534.8,3534.2,1.96800613]
[1641431891070,0.03199227,3534.6,3534.2,1.96800613]
[1641431891273,0.03199227,3534.7,3534.2,1.96800613]
[1641431891473,0.03199227,3534.5,3534.2,1.96800613]
[1641431891672,0.03199227,3534.6,3534.2,1.96800613]
[1641431891874,0.03199227,3534.4,3534.2,1.96800613]
[1641431892072,0.03199227,3534.5,3534.2,2.19799713]
[1641431892372,0.03199227,3534.3,3534.2,1.96800613]
[1641431892574,1.5,3534.9,3534.2,1.96800613]
[1641431892575,0.03199227,3534.4,3534.2,1.96800613]
[1641431892774,0.03199227,3534.3,3534.2,1.96800613]
[1641431893176,1.27489949,3534.4,3534.2,2.33039113]
[1641431893376,0.03199227,3534.3,3534.2,2.33039113]
[1641431894276,0.03199227,3534.3,3534.2,1.96800613]
[1641431894479,1.30689176,3534.3,3534.2,2.19799713]
[1641431894675,0.30689176,3534.3,3534.2,2.19799713]
[1641431894875,0.30689176,3534.3,3534.2,2.33039113]
[1641431895877,0.17745585,3534.8,3534.2,2.33039113]
[1641431896077,0.17745585,3534.9,3534.2,2.33039113]
[1641431896279,0.03198957,3534.7,3534.2,2.33039113]
[1641431896478,0.03198957,3534.8,3534.2,2.33039113]
[1641431896981,0.20944542,3534.8,3534.2,2.33039113]
[1641431897380,0.03198957,3534.7,3534.2,2.33039113]
[1641431898380,0.17745585,3534.6,3534.2,2.33039113]
[1641431898884,0.03198957,3534.5,3534.2,2.33039113]
[1641431899682,4.00958,3535.0,3534.8,0.79055458]
[1641431900385,2.00479,3535.0,3534.9,0.71652854]
[1641431900785,2.03677948,3535.0,3534.9,0.71652854]
[1641431902086,0.03198948,3535.0,3534.9,0.94651954]
[1641431902487,0.03198948,3535.2,3534.9,1.07891354]
[1641431902684,1.91237677,3535.3,3534.9,1.07891354]
[1641431902984,0.03198326,3535.1,3534.9,1.07891354]
[1641431903386,0.03198326,3535.2,3534.9,1.07891354]
[1641431903585,0.66455457,3535.6,3534.9,1.07891354]
[1641431903887,0.03198275,3535.1,3534.9,1.07891354]
[1641431904088,0.03198275,3535.1,3535.0,2.00479]
[1641431904288,0.03198275,3535.5,3535.0,2.00479]
[1641431904488,0.03198275,3535.1,3535.0,2.00479]
[1641431904690,0.03198275,3535.4,3535.0,2.234781]
[1641431904891,2.00479,3535.7,3535.0,2.234781]
[1641431905190,0.03198139,3535.3,3535.1,0.132394]
[1641431905392,0.03198139,3535.6,3535.1,0.132394]
[1641431905591,2.00479,3535.7,3535.1,0.132394]
[1641431905790,0.03198049,3535.5,3535.1,0.132394]
[1641431905990,0.95588054,3535.3,3535.1,0.132394]
[1641431906191,0.95588054,3535.3,3535.2,0.229991]
[1641431907293,0.95588054,3535.4,3535.2,0.229991]
[1641431907492,0.95588054,3535.4,3535.3,0.132394]
[1641431908492,5.0,3536.1,3535.3,0.132394]
[1641431908891,2.39898435,3535.9,3535.3,0.132394]
[1641431909091,1.91237677,3535.7,3535.3,0.132394]
[1641431910093,0.03197475,3535.6,3535.4,2.00479]
[1641431910292,0.03197475,3535.6,3535.5,1.28165072]
[1641431910994,0.03197475,3535.8,3535.5,1.28165072]
[1641431911293,0.03197475,3535.6,3535.5,1.28165072]
[1641431911494,1.91237677,3535.9,3535.5,1.28165072]
[1641431911896,0.03197306,3535.8,3535.5,1.28165072]
[1641431914496,1.91237677,3535.9,3535.6,1.60707791]
[1641431914696,1.91237677,3535.9,3535.7,0.362385]
[1641431914896,1.91237677,3535.9,3535.8,1.5]
[1641431915098,1.91237677,3535.9,3535.7,0.362385]
[1641431916001,1.91237677,3535.9,3535.8,2.00479]
[1641431916300,5.0,3536.1,3535.8,2.00479]
[1641431916301,6.91237677,3536.1,3535.8,2.00479]
[1641431916700,6.91237677,3536.1,3535.9,0.362385]
[1641431917102,5.0,3536.1,3535.9,0.362385]
[1641431917902,0.03197153,3536.0,3535.9,0.362385]
[1641431918103,0.03197153,3536.0,3535.8,2.00479]
[1641431918502,0.03197153,3536.0,3535.8,2.234781]
[1641431918903,0.03197153,3536.0,3535.9,2.89095471]
[1641431923208,0.03197153,3536.0,3535.9,2.75856071]
[1641431923909,0.03197153,3536.0,3535.9,2.89095471]
[1641431928219,0.03197153,3536.0,3535.9,2.75856071]
[1641431933126,0.03197153,3536.0,3535.9,2.89095471]
[1641431933328,0.03197153,3536.0,3535.9,3.12094571]
[1641431933923,0.03197153,3536.0,3535.9,2.89095471]
[1641431934324,0.03197153,3536.0,3535.9,3.12094571]
[1641431934524,0.03197153,3536.0,3535.9,2.89095471]
[1641431935126,0.03197153,3536.0,3535.9,3.12094571]
[1641431935426,0.03197153,3536.0,3535.9,2.89095471]
[1641431935654,0.03197153,3536.0,3535.9,4.39095471]
[1641431935826,0.94991799,3536.8,3535.9,5.80379517]
[1641431936024,0.94991799,3536.8,3536.2,13.69]
[1641431936025,0.10191799,3536.8,3536.2,13.69]
[1641431936226,0.10191799,3536.8,3536.7,4.00958]
[1641431936426,0.10191799,3536.8,3536.7,16.19958]
[1641431936729,0.13388347,3536.8,3536.7,17.5366943]
[1641431936926,0.03196548,3536.8,3536.7,5.3466943]
[1641431937126,0.10191799,3537.5,3536.7,8.25935513]
[1641431937326,0.10191799,3537.5,3536.9,1.5]
[1641431937528,0.10191799,3537.5,3537.1,1.5]
[1641431937725,0.03196191,3537.4,3537.1,7.06672682]
[1641431937926,0.03196191,3537.4,3537.2,0.229991]
[1641431938128,0.03196191,3537.4,3537.3,0.132394]
[1641431938326,0.03196191,3537.4,3537.3,2.00479]
[1641431938928,0.03196191,3537.7,3537.3,2.00479]
[1641431939128,0.03196191,3537.4,3537.3,2.00479]
[1641431939328,0.03196191,3537.6,3537.3,2.00479]
[1641431939529,0.03196191,3537.4,3537.3,2.00479]
[1641431939730,0.03196191,3537.5,3537.3,2.00479]
[1641431939928,0.03196191,3537.4,3537.3,2.00479]
[1641431940130,0.03196191,3537.9,3537.3,2.00479]
[1641431940330,2.00479,3537.8,3537.3,2.00479]
[1641431940734,0.03196191,3537.7,3537.3,2.00479]
[1641431941930,1.5,3537.4,3536.8,1.41260895]
[1641431942130,1.5,3537.2,3536.1,1.41287439]
[1641431942331,2.00479,3536.5,3536.1,1.41287439]
[1641431942532,2.00479,3536.5,3536.2,0.132394]
[1641431942734,2.00479,3536.5,3536.3,0.229991]
[1641431942930,2.00479,3536.5,3536.4,0.132394]
[1641431943130,2.00479,3536.5,3535.7,2.00479]
[1641431943534,2.03675821,3536.5,3536.0,0.132394]
[1641431943733,0.03196821,3536.4,3536.0,0.132394]
[1641431943933,2.00479,3536.5,3536.0,0.132394]
[1641431944133,2.00479,3536.5,3536.1,0.95599032]
[1641431944334,0.03196771,3536.4,3536.2,0.132394]
[1641431944534,0.03196771,3536.4,3536.2,0.362385]
[1641431944952,0.03196771,3536.4,3536.2,0.132394]
[1641431945333,2.00479,3536.5,3536.3,0.229991]
[1641431945534,2.00479,3536.5,3536.4,0.132394]
[1641431946135,2.0367572,3536.5,3536.4,0.362385]
[1641431946334,2.0367572,3536.5,3536.4,0.132394]
[1641431946535,2.00479,3536.5,3536.4,0.132394]
[1641431946834,2.03675692,3536.5,3536.4,0.132394]
[1641431947234,2.03675692,3536.5,3536.4,0.362385]
[1641431947435,2.00479,3536.5,3536.4,0.132394]
[1641431948736,2.17103326,3536.5,3536.4,0.132394]
[1641431948935,1.91237677,3536.6,3536.5,0.58752745]
[1641431949335,1.94434391,3536.6,3536.5,0.71992145]
[1641431949739,0.03196714,3536.6,3536.5,0.71992145]
[1641431950238,0.03196714,3536.6,3536.5,0.94991245]
[1641431950839,1.94434391,3536.6,3536.5,0.94991245]
[1641431952240,1.94434391,3536.6,3536.5,2.95470245]
[1641431952440,1.91237677,3536.6,3536.5,2.95470245]
[1641431952840,1.9443426,3536.6,3536.5,2.95470245]
[1641431953039,1.9443426,3536.6,3536.5,2.72471145]
[1641431953439,1.27253485,3537.0,3536.5,2.72471145]
[1641431954042,0.03196569,3536.9,3536.5,2.72471145]
[1641431954840,0.03196569,3536.9,3536.5,2.59231745]
[1641431955242,1.5,3536.6,3536.5,2.59231745]
[1641431955442,1.53196569,3536.9,3536.5,2.59231745]
[1641431955644,1.53196569,3536.6,3536.5,0.58752745]
[1641431955844,1.5,3536.6,3536.5,0.58752745]
[1641431956044,2.15156569,3536.6,3536.5,0.58752745]
[1641431956248,0.65156569,3536.6,3536.5,0.58752745]
[1641431956445,2.65635569,3536.6,3536.5,0.58752745]
[1641431956645,4.15635569,3536.6,3536.1,0.95599032]
[1641431956845,1.5,3536.2,3535.4,0.95372831]
[1641431957046,1.5,3536.0,3535.4,0.95372831]
[1641431957446,0.03196569,3535.9,3535.4,0.95372831]
[1641431958047,0.03196569,3535.9,3535.5,0.73852525]
[1641431958248,1.5,3535.7,3535.5,0.73852525]
[1641431958449,2.00479,3535.6,3535.5,0.73852525]
[1641431958651,2.03675569,3535.6,3535.5,0.73852525]
[1641431959150,3.53675569,3535.6,3535.5,0.73852525]
[1641431959348,2.03675569,3535.6,3535.5,0.73852525]
[1641431959548,2.03675569,3535.6,3535.5,0.68132525]
[1641431960752,2.00479,3535.6,3535.5,0.68132525]
[1641431962151,2.00479,3535.8,3535.5,0.91131625]
[1641431962351,2.00479,3535.8,3535.5,0.229991]
[1641431962551,2.00479,3535.8,3535.4,0.132394]
[1641431962752,2.00479,3535.8,3535.3,2.00479]
[1641431963153,0.0319736,3535.7,3535.3,2.00479]
[1641431963754,2.00479,3535.8,3535.3,2.00479]
[1641431964158,0.03197345,3535.7,3535.3,2.00479]
[1641431964558,2.00479,3535.8,3535.3,2.00479]
[1641431964757,2.00479,3535.8,3535.4,0.95918043]
[1641431965057,2.00479,3535.8,3535.3,2.00479]
[1641431965256,0.03197362,3535.7,3535.3,2.00479]
[1641431965858,2.00479,3535.8,3535.3,2.00479]
[1641431966260,2.00479,3535.8,3535.4,1.22344049]
[1641431966459,0.03197497,3535.7,3535.4,1.22344049]
[1641431967459,1.5,3535.5,3534.7,1.27118782]
[1641431967658,1.5,3534.8,3534.7,1.27118782]
[1641431968058,1.5,3534.8,3534.1,3.5131355]
[1641431968059,1.5,3534.8,3534.4,8.782e-05]
[1641431968559,1.5,3534.6,3534.4,8.782e-05]
[1641431968758,2.03677251,3534.7,3534.4,8.782e-05]
[1641431968958,1.5,3534.6,3534.4,8.782e-05]
[1641431969162,0.03198251,3534.6,3534.2,0.79349308]
[1641431969360,2.00479,3534.7,3534.2,0.79349308]
[1641431969859,0.03198454,3534.6,3534.2,0.79349308]
[1641431970259,1.53198454,3534.6,3534.2,0.79349308]
[1641431970660,0.03198454,3534.5,3534.2,0.79349308]
[1641431971159,0.8459,3534.5,3534.2,0.79349308]
[1641431972360,1.5,3534.3,3534.2,0.79349308]
[1641431972561,3.50479,3534.3,3533.3,1.41399316]
[1641431972761,3.53677554,3534.3,3533.3,1.41399316]
[1641431972960,0.03198554,3534.2,3533.4,0.95961638]
[1641431973362,0.03198554,3534.2,3533.4,2.33855153]
[1641431973564,0.03198554,3534.2,3533.4,2.93817539]
[1641431973761,0.03198554,3534.2,3533.4,1.97855901]
[1641431974363,1.5,3534.1,3533.4,1.97855901]
[1641431974562,2.00479,3533.5,3533.4,1.97855901]
[1641431974961,2.00479,3533.5,3533.4,1.37893515]
[1641431975260,2.00479,3533.5,3533.4,1.60892615]
[1641431976061,2.00479,3533.5,3533.4,2.5684867]
[1641431978063,2.00479,3534.3,3533.4,2.5684867]
[1641431978263,2.00479,3534.3,3533.9,1.41376727]
[1641431978663,2.00479,3534.3,3534.0,0.95956055]
[1641431978865,2.00479,3534.3,3534.1,0.362385]
[1641431979063,2.00479,3534.3,3534.2,1.07944595]
[1641431979265,2.00479,3534.3,3534.2,2.5618065]
[1641431979863,1.27005738,3534.6,3534.3,12.19]
[1641431980063,1.27005738,3534.6,3534.4,0.362385]
[1641431980262,1.27005738,3534.6,3534.4,1.32194555]
[1641431980465,1.27005738,3534.6,3534.5,1.5]
[1641431980664,1.27005738,3534.6,3534.5,2.45956055]
[1641431981063,1.27005738,3534.6,3534.5,0.95956055]
[1641431981264,1.27005738,3534.7,3534.5,0.95956055]
[1641431981464,1.27005738,3534.7,3534.6,0.229991]
[1641431981664,1.27005738,3534.7,3534.5,0.95956055]
[1641431981866,1.27005738,3534.7,3534.6,0.95956055]
[1641431982068,1.27005738,3534.7,3534.4,0.132394]
[1641431982069,1.27005738,3534.7,3534.5,0.95956055]
[1641431982467,1.27005738,3534.9,3534.5,0.95956055]
[1641431982667,1.27005738,3534.9,3534.4,3.66791256]
[1641431982867,1.27005738,3534.9,3534.4,2.70835201]
[1641431983173,1.27005738,3534.9,3534.5,0.95937518]
[1641431983971,1.27005738,3534.9,3534.5,1.09176918]
[1641431984171,0.20528682,3535.0,3534.8,1.27889843]
[1641431984370,0.20528682,3535.0,3534.9,1.12815797]
[1641431984579,0.20528682,3535.0,3534.9,1.35814897]
[1641431984974,0.20528682,3535.0,3534.9,2.31742521]
[1641431986073,0.20528682,3535.0,3534.9,3.81742521]
[1641431986273,1.91237677,3535.4,3534.9,3.81742521]
[1641431986474,0.65069941,3535.6,3534.9,3.81742521]
[1641431986475,0.65069941,3535.6,3535.0,0.132394]
[1641431986674,0.65069941,3535.6,3535.1,2.00479]
[1641431986973,0.65069941,3535.6,3535.2,0.95927624]
[1641431987675,0.65069941,3535.6,3535.3,0.132394]
[1641431987874,0.65069941,3535.6,3535.4,0.229991]
[1641431988076,0.65069941,3535.6,3535.5,1.36147697]
[1641431988274,0.20386353,3535.8,3535.5,1.36147697]
[1641431988676,0.20386353,3535.8,3535.6,0.229991]
[1641431988875,0.20386353,3535.8,3535.7,0.132394]
[1641431990079,0.20386353,3535.8,3535.7,1.09137856]
[1641431990279,0.20386353,3535.8,3535.7,0.132394]
[1641431990480,2.00479,3535.9,3535.7,0.132394]
[1641431990682,2.00479,3535.9,3535.8,0.229991]
[1641431991786,1.00479,3535.9,3535.8,0.229991]
[1641431992084,1.00479,3535.9,3535.8,0.82929298]
[1641431993485,1.91237677,3536.5,3535.8,0.82929298]
[1641431993685,1.91237677,3536.5,3536.3,1.5]
[1641431993886,1.91237677,3536.5,3536.4,13.66906332]
[1641431994286,1.91237677,3536.5,3536.4,13.80145732]
[1641431994587,1.91237677,3536.5,3536.4,15.117223]
[1641431994789,1.91237677,3536.5,3536.4,17.122013]
[1641431995488,1.91237677,3536.8,3536.4,18.53474368]
[1641431996288,1.91237677,3536.8,3536.4,17.122013]
[1641431996688,1.91237677,3537.2,3536.6,13.46844036]
[1641431996889,1.91237677,3537.2,3536.6,1.27844036]
[1641431997089,0.03196188,3537.1,3536.6,1.27844036]
[1641431997789,1.53196188,3537.1,3536.6,1.27844036]
[1641431997990,1.53196188,3537.1,3536.5,1.0]
[1641431997991,1.53196188,3537.1,3536.8,0.95874386]
[1641431998189,1.94433865,3537.0,3536.8,0.95874386]
[1641431998591,0.03196188,3536.9,3536.8,0.95874386]
[1641431998793,2.03675188,3536.9,3536.8,0.95874386]
[1641431999392,4.43573623,3536.9,3536.5,1.0]
[1641431999792,0.03196188,3536.8,3536.5,1.0]
[1641432000592,1.91460553,3536.7,3536.5,1.0]
[1641432001692,1.91460553,3536.7,3536.5,1.229991]
[1641432001892,0.91460553,3536.7,3536.5,1.229991]
[1641432002092,0.03196615,3536.6,3536.5,1.0]
[1641432002595,0.91460553,3536.7,3536.5,1.229991]
[1641432003593,0.91460553,3536.7,3536.5,1.0]
[1641432004597,0.03196911,3536.6,3536.5,1.0]
[1641432004797,2.03675911,3536.6,3536.5,1.0]
[1641432008203,2.03675911,3536.6,3536.2,0.95874386]
[1641432008204,3.53675911,3536.6,3535.9,1.27844036]
[1641432008403,1.5,3536.0,3535.4,1.59731002]
[1641432008602,1.5,3536.0,3535.7,1.27784802]
[1641432008902,0.00479,3535.8,3535.4,1.59731002]
[1641432009402,0.03196911,3535.7,3535.5,0.96888169]
[1641432010002,0.59236911,3535.7,3535.5,0.96888169]
[1641432010403,0.5604,3535.7,3535.5,0.96888169]
[1641432010902,0.03197514,3535.6,3535.5,0.96888169]
[1641432011102,0.5604,3535.7,3535.5,0.96888169]
[1641432013009,2.46927624,3535.7,3535.5,0.96888169]
[1641432014009,0.23390098,3535.6,3535.5,0.96888169]
[1641432015010,2.1747522,3535.6,3535.5,0.96888169]
[1641432015411,2.14277722,3535.6,3535.5,0.96888169]
[1641432017015,0.23390098,3535.6,3535.5,0.96888169]
[1641432017216,1.73390098,3535.6,3535.5,0.96888169]
[1641432017415,1.73390098,3535.6,3534.7,2.00479]
[1641432017615,1.5,3534.8,3534.7,2.00479]
[1641432017815,1.5,3534.8,3534.6,1.91719815]
[1641432018016,1.5,3534.8,3534.1,3.16257385]
[1641432018318,1.5,3534.5,3534.1,3.16257385]
[1641432018715,1.5,3534.5,3534.4,1.91832843]
[1641432018915,5.50958,3534.5,3534.4,1.91832843]
[1641432019916,5.50958,3534.5,3534.0,1.30218948]
[1641432020118,1.5,3534.2,3534.0,1.30218948]
[1641432020316,1.5,3534.4,3534.1,0.59962575]
[1641432020716,13.69,3534.4,3534.1,0.59962575]
[1641432021019,1.5,3534.4,3534.1,0.59962575]
[1641432021418,1.5,3534.4,3534.0,1.30218948]
[1641432022018,4.00958,3534.5,3534.0,1.30218948]
[1641432022820,2.00479,3534.1,3534.0,1.30218948]
[1641432025723,3.50479,3534.1,3532.8,2.00479]
[1641432025923,1.5,3533.9,3532.8,2.00479]
[1641432026125,1.5,3533.5,3532.8,2.00479]
[1641432026723,1.5,3533.8,3532.8,2.00479]
[1641432026923,2.9147173,3533.5,3533.2,2.88528867]
[1641432027123,1.5,3533.3,3532.1,1.27920161]
[1641432027323,1.5,3533.1,3532.1,1.27920161]
[1641432027523,1.5,3533.1,3531.6,1.27920161]
[1641432027925,1.5,3533.1,3531.7,0.95995775]
[1641432028923,1.5,3533.1,3531.7,2.15151376]
[1641432028924,2.00479,3532.4,3531.7,2.15151376]
[1641432029125,2.00479,3532.4,3531.8,0.132394]
[1641432029324,2.00479,3532.4,3531.8,1.09235175]
[1641432029724,2.00479,3532.4,3531.9,2.45995775]
[1641432029925,2.00479,3532.4,3532.0,0.132394]
[1641432030126,2.00479,3532.4,3532.0,1.09235175]
[1641432030727,0.0854304,3532.4,3532.1,0.95995775]
[1641432030928,2.00479,3532.8,3532.2,0.362385]
[1641432031329,2.00479,3532.8,3532.3,0.95995775]
[1641432031528,2.00479,3532.8,3532.4,0.99523237]
[1641432031933,2.00479,3532.8,3532.5,0.95995775]
[1641432033129,2.00479,3532.8,3532.6,0.229991]
[1641432033329,2.00479,3532.8,3532.5,0.95995775]
[1641432033530,2.00479,3532.8,3532.4,0.99523237]
[1641432033729,2.00479,3532.8,3532.6,0.95986256]
[1641432033931,2.00479,3532.8,3532.4,0.99523237]
[1641432034331,2.00479,3532.8,3532.5,0.95986643]
[1641432037535,2.00479,3532.8,3532.6,0.229991]